[Event "Moscow ch-T 2018"]
[Site "Moscow"]
[Date "2018.09.22"]
[Round "2"]
[White "Elistratov, Semen"]
[Black "Korchagina, Alena"]
[Result "1-0"]
[ECO "A06"]
[WhiteElo "2400"]
[BlackElo "2191"]
[Annotator "ChessBase"]
[PlyCount "105"]
[EventDate "2018.09.20"]
[EventType "team-tourn"]
[EventCountry "RUS"]
[SourceTitle "playchess.com"]
[Source "ChessBase"]
[SourceQuality "1"]
[TimeControl "5400+30"]

1. Nf3 {[%emt 0:00:00]} d5 {[%emt 0:06:14]} 2. g3 {[%emt 0:00:12]} Nf6 {[%emt 0:00:25]} 3. Bg2 {[%emt 0:00:21]} Bf5 {[%emt 0:00:33]} 4. O-O {[%emt 0:01:27]} h6 {[%emt 0:00:10]} 5. c4 {[%emt 0:00:59]} c6 {[%emt 0:01:36]} 6. d3 {[%emt 0:04:56]} e6 {[%emt 0:00:36]} 7. cxd5 {[%emt 0:00:47]} exd5 {[%emt 0:03:15]} 8. Nc3 {[%emt 0:00:08]} Bc5 {[%emt 0:04:10]} 9. Qb3 {[%emt 0:03:06]} Qc8 {[%emt 0:05:05]} 10. e4 {[%emt 0:03:21]} dxe4 {[%emt 0:04:04]} 11. dxe4 {[%emt 0:01:20]} Be6 {[%emt 0:00:13]} 12. Qc2 {[%emt 0:00:03]} Na6 {[%emt 0:00:54]} 13. Ne2 {[%emt 0:06:11]} O-O {[%emt 0:06:39]} 14. Nf4 {[%emt 0:04:02]} Re8 {[%emt 0:03:56]} 15. a3 {[%emt 0:06:09]} Bg4 {[%emt 0:05:46]} 16. h3 {[%emt 0:10:34]} Bxf3 {[%emt 0:00:48]} 17. Bxf3 {[%emt 0:00:05]} Bf8 {[%emt 0:03:03]} 18. b4 {[%emt 0:02:46]} g5 {[%emt 0:05:37]} 19. Nh5 {[%emt 0:04:29]} Nxh5 {[%emt 0:00:14]} 20. Bg4 {[%emt 0:00:16]} Qd8 {[%emt 0:03:52]} 21. Bxh5 {[%emt 0:00:15]} Bg7 {[%emt 0:00:27]} 22. Rb1 {[%emt 0:02:12]} Nc7 {[%emt 0:01:07]} 23. Bf3 {[%emt 0:02:21]} Ne6 {[%emt 0:02:31]} 24. Bg2 {[%emt 0:00:07]} Nd4 {[%emt 0:05:59]} 25. Qc4 {[%emt 0:06:07]} Qe7 {[%emt 0:02:16]} 26. f4 {[%emt 0:05:57]} gxf4 {[%emt 0:09:38]} 27. gxf4 {[%emt 0:00:37]} b5 {[%emt 0:06:05]} 28. Qd3 {[%emt 0:03:56]} c5 {[%emt 0:00:58]} 29. bxc5 {[%emt 0:13:03]} Qxc5 {[%emt 0:00:07]} 30. Kh1 {[%emt 0:00:45]} Qc4 {[%emt 0:09:34]} 31. Qe3 {[%emt 0:06:44]} Nf5 {[%emt 0:04:04]} 32. Qf2 {[%emt 0:03:07]} Nd4 {[%emt 0:05:22]} 33. Bb2 {[%emt 0:01:03]} Rad8 {[%emt 0:00:33]} 34. Rbc1 {[%emt 0:02:09]} Qa4 {[%emt 0:00:34]} 35. Rc3 {[%emt 0:01:20]} Kh8 {[%emt 0:00:25]} 36. Rg3 {[%emt 0:01:18]} Rg8 {[%emt 0:00:11]} 37. Rd3 {[%emt 0:02:26]} Ne6 {[%emt 0:00:29]} 38. Rxd8 Nxd8 {[%emt 0:00:48]} 39. Bxg7+ {[%emt 0:00:53]} Rxg7 {[%emt 0:00:08]} 40. Qd2 {[%emt 0:01:32]} Ne6 {[%emt 0:00:29]} 41. f5 {[%emt 0:00:36]} Ng5 {[%emt 0:00:45]} 42. e5 {[%emt 0:01:43]} Qh4 {[%emt 0:00:45]} 43. Qe3 {[%emt 0:00:52]} Qc4 {[%emt 0:00:18]} 44. Rc1 {[%emt 0:00:21]} Qa2 {[%emt 0:00:06]} 45. h4 {[%emt 0:01:02]} Nh7 {[%emt 0:00:28]} 46. Rc8+ {[%emt 0:00:27]} Rg8 {[%emt 0:00:03]} 47. Rxg8+ Kxg8 {[%emt 0:00:03]} 48. Qg3+ {[%emt 0:01:13]} Kf8 {[%emt 0:00:41]} 49. Kh2 {[%emt 0:00:29]} Qc2 {[%emt 0:00:53]} 50. Qf4 {[%emt 0:00:14]} Ke8 {[%emt 0:01:16]} 51. e6 {[%emt 0:00:51]} fxe6 {[%emt 0:00:43]} 52. fxe6 {[%emt 0:00:05]} Qg6 {[%emt 0:00:31]} 53. Qd6 {[%emt 0:00:09]} 1-0

[Event "Moscow ch-T 2018"]
[Site "Moscow"]
[Date "2018.09.22"]
[Round "2"]
[White "Pogosyan, Stefan"]
[Black "Tsvetkov, Andrey"]
[Result "1/2-1/2"]
[ECO "D43"]
[WhiteElo "2373"]
[BlackElo "2264"]
[Annotator "ChessBase"]
[PlyCount "69"]
[EventDate "2018.09.20"]
[EventType "team-tourn"]
[EventCountry "RUS"]
[SourceTitle "playchess.com"]
[Source "ChessBase"]
[SourceQuality "1"]
[TimeControl "5400+30"]

1. d4 {[%emt 0:00:00]} d5 {[%emt 0:00:22]} 2. c4 {[%emt 0:00:16]} e6 {[%emt 0:00:01]} 3. Nc3 {[%emt 0:00:07]} c6 {[%emt 0:00:04]} 4. Nf3 {[%emt 0:00:29]} Nf6 {[%emt 0:00:06]} 5. Qb3 {[%emt 0:00:03]} dxc4 {[%emt 0:02:41]} 6. Qxc4 {[%emt 0:00:10]} b5 {[%emt 0:00:18]} 7. Qb3 {[%emt 0:04:16]} a6 {[%emt 0:02:00]} 8. Bg5 {[%emt 0:01:32]} c5 {[%emt 0:03:34]} 9. dxc5 Bxc5 {[%emt 0:00:23]} 10. a4 {[%emt 0:13:15]} Qa5 {[%emt 0:11:53]} 11. Bxf6 {[%emt 0:05:29]} gxf6 {[%emt 0:00:43]} 12. Rc1 {[%emt 0:00:33]} bxa4 {[%emt 0:01:17]} 13. Qxa4+ {[%emt 0:00:57]} Qxa4 {[%emt 0:00:04]} 14. Nxa4 {[%emt 0:00:12]} Bb4+ {[%emt 0:00:01]} 15. Nd2 {[%emt 0:03:18]} Nd7 {[%emt 0:05:30]} 16. e3 {[%emt 0:09:23]} Ke7 {[%emt 0:04:07]} 17. Be2 {[%emt 0:04:16]} Bb7 {[%emt 0:08:11]} 18. Bf3 {[%emt 0:06:05]} Bxf3 {[%emt 0:15:52]} 19. gxf3 {[%emt 0:00:54]} Rab8 {[%emt 0:07:45]} 20. Ke2 {[%emt 0:04:18]} Bxd2 {[%emt 0:01:52]} 21. Kxd2 {[%emt 0:00:06]} Rb4 {[%emt 0:00:04]} 22. Ra1 {[%emt 0:00:17]} Ne5 {[%emt 0:00:34]} 23. f4 {[%emt 0:01:14]} Rd8+ {[%emt 0:02:56]} 24. Ke2 {[%emt 0:00:44]} Nc4 {[%emt 0:00:51]} 25. Rhc1 {[%emt 0:00:59]} Nxb2 {[%emt 0:09:53]} 26. Nc5 {[%emt 0:00:36]} Nc4 {[%emt 0:01:51]} 27. Nd3 {[%emt 0:13:35]} Rb3 {[%emt 0:00:04]} 28. Rxc4 {[%emt 0:00:14]} Rbxd3 {[%emt 0:00:05]} 29. Rxa6 {[%emt 0:00:10]} f5 {[%emt 0:00:35]} 30. Kf3 {[%emt 0:01:12]} Rd2 {[%emt 0:02:06]} 31. h4 {[%emt 0:01:16]} Kf6 32. Ra7 R8d7 {[%emt 0:02:10]} 33. Rxd7 {[%emt 0:01:24]} Rxd7 {[%emt 0:00:02]} 34. Rc8 {[%emt 0:00:10]} Rd1 35. Kg2 {Ke5} 1/2-1/2

[Event "Moscow ch-T 2018"]
[Site "Moscow"]
[Date "2018.09.22"]
[Round "2"]
[White "Maltsevskaya, Aleksandra"]
[Black "Gorbatov, Alexej"]
[Result "1/2-1/2"]
[ECO "C42"]
[WhiteElo "2234"]
[BlackElo "2389"]
[Annotator "ChessBase"]
[PlyCount "70"]
[EventDate "2018.09.20"]
[EventType "team-tourn"]
[EventCountry "RUS"]
[SourceTitle "playchess.com"]
[Source "ChessBase"]
[SourceQuality "1"]
[TimeControl "5400+30"]

1. e4 e5 2. Nf3 {[%emt 0:02:57]} Nf6 {[%emt 0:00:55]} 3. Nxe5 {[%emt 0:01:13]} d6 {[%emt 0:00:28]} 4. Nf3 {[%emt 0:00:08]} Nxe4 {[%emt 0:00:05]} 5. Nc3 {[%emt 0:00:07]} Nf6 {[%emt 0:00:04]} 6. d4 {[%emt 0:03:00]} Be7 {[%emt 0:00:55]} 7. h3 O-O 8. Bd3 c5 9. O-O Nc6 10. Re1 {[%emt 0:12:18]} h6 {[%emt 0:11:04]} 11. d5 {[%emt 0:05:51]} Nb4 {[%emt 0:04:07]} 12. Bc4 {[%emt 0:02:41]} Bf5 {[%emt 0:14:10]} 13. Bb3 {[%emt 0:03:14]} Re8 {[%emt 0:08:42]} 14. Nd2 {[%emt 0:09:57]} Rb8 {[%emt 0:08:34]} 15. a3 {[%emt 0:05:32]} Na6 {[%emt 0:00:11]} 16. a4 {[%emt 0:01:40]} Nb4 {[%emt 0:07:18]} 17. Nc4 {[%emt 0:01:33]} Bf8 {[%emt 0:08:35]} 18. Rxe8 {[%emt 0:04:53]} Nxe8 {[%emt 0:00:05]} 19. Ne2 {[%emt 0:06:14]} Nf6 {[%emt 0:01:25]} 20. Ng3 {[%emt 0:00:59]} Bg6 {[%emt 0:01:55]} 21. Ne3 {[%emt 0:00:23]} Qd7 {[%emt 0:04:43]} 22. Bd2 {[%emt 0:03:44]} Na6 {[%emt 0:03:45]} 23. Qf3 {[%emt 0:03:57]} Re8 {[%emt 0:00:32]} 24. a5 {[%emt 0:02:11]} Qc8 {[%emt 0:05:36]} 25. Bc3 {[%emt 0:02:51]} Ne4 {[%emt 0:01:23]} 26. Nxe4 {[%emt 0:00:32]} Rxe4 {[%emt 0:01:01]} 27. Bc4 {[%emt 0:09:21]} Re8 {[%emt 0:03:45]} 28. Bb5 {[%emt 0:05:19]} Rd8 {[%emt 0:01:49]} 29. Ng4 {[%emt 0:00:29]} Qf5 {[%emt 0:00:48]} 30. Qg3 {[%emt 0:02:22]} Nb4 {[%emt 0:02:49]} 31. Ne3 {[%emt 0:05:20]} Qc8 {[%emt 0:00:08]} 32. h4 {[%emt 0:02:17]} h5 {[%emt 0:06:22]} 33. Qf3 {[%emt 0:02:42]} Nxc2 {[%emt 0:00:14]} 34. Nxc2 {[%emt 0:00:04]} Bxc2 {[%emt 0:00:03]} 35. Qxh5 {[%emt 0:00:30]} Qf5 {[%emt 0:00:20]} 1/2-1/2

[Event "Moscow ch-T 2018"]
[Site "Moscow"]
[Date "2018.09.22"]
[Round "2"]
[White "Drozdova,, Dina"]
[Black "Kukhmazov, Arsen"]
[Result "0-1"]
[ECO "E18"]
[WhiteElo "2183"]
[BlackElo "2395"]
[Annotator "ChessBase"]
[PlyCount "100"]
[EventDate "2018.09.20"]
[EventType "team-tourn"]
[EventCountry "RUS"]
[SourceTitle "playchess.com"]
[Source "ChessBase"]
[SourceQuality "1"]
[TimeControl "5400+30"]

1. d4 Nf6 2. c4 e6 3. Nf3 b6 4. g3 {[%emt 0:17:12]} Bb7 {[%emt 0:01:04]} 5. Bg2 {[%emt 0:00:05]} Be7 {[%emt 0:00:03]} 6. O-O {[%emt 0:00:09]} O-O {[%emt 0:00:02]} 7. Nc3 {[%emt 0:00:52]} Ne4 {[%emt 0:00:08]} 8. Nxe4 Bxe4 {[%emt 0:00:06]} 9. b3 {[%emt 0:06:45]} d5 {[%emt 0:04:18]} 10. Bb2 {[%emt 0:04:03]} Nd7 {[%emt 0:01:49]} 11. Rc1 {[%emt 0:00:52]} a5 {[%emt 0:07:04]} 12. cxd5 {[%emt 0:10:59]} exd5 {[%emt 0:00:54]} 13. Ne5 {[%emt 0:00:28]} Nxe5 {[%emt 0:05:59]} 14. Bxe4 dxe4 {[%emt 0:00:16]} 15. dxe5 {[%emt 0:01:01]} e3 {[%emt 0:10:52]} 16. f4 {[%emt 0:31:23]} Bc5 {[%emt 0:00:12]} 17. Qc2 {[%emt 0:02:35]} Qd2 {[%emt 0:28:54]} 18. Bc3 {[%emt 0:02:04]} Qxc2 {[%emt 0:00:33]} 19. Rxc2 {[%emt 0:00:08]} Rfd8 {[%emt 0:00:01]} 20. Kg2 {[%emt 0:00:14]} Rd5 {[%emt 0:00:13]} 21. Kf3 {[%emt 0:00:30]} Rad8 {[%emt 0:00:50]} 22. g4 {[%emt 0:04:23]} Kf8 {[%emt 0:00:29]} 23. h4 {[%emt 0:00:30]} g6 {[%emt 0:04:59]} 24. Rh1 {[%emt 0:02:00]} Ke7 {[%emt 0:13:34]} 25. h5 {[%emt 0:03:28]} gxh5 {[%emt 0:10:26]} 26. gxh5 {[%emt 0:00:48]} Rg8 {[%emt 0:00:23]} 27. Rcc1 {[%emt 0:02:52]} h6 {[%emt 0:06:58]} 28. Rhg1 {[%emt 0:03:57]} Rgd8 {[%emt 0:00:18]} 29. Rc2 {[%emt 0:04:32]} Kf8 {[%emt 0:01:17]} 30. Ke4 {[%emt 0:00:55]} R8d7 {[%emt 0:01:15]} 31. Kf3 {[%emt 0:00:49]} Be7 32. Re1 {[%emt 0:00:30]} Bc5 33. Rg1 {[%emt 0:00:30]} Ba3 34. Rf1 {[%emt 0:00:30]} Rc5 35. Kxe3 {[%emt 0:00:30]} b5 36. e6 {[%emt 0:00:30]} fxe6 37. Rg1 {[%emt 0:00:30]} b4 38. Bg7+ {[%emt 0:00:30]} Rxg7 39. Rxg7 {[%emt 0:00:30]} Rxc2 40. Rh7 {[%emt 0:00:30]} Bc1+ 41. Kf3 {[%emt 0:00:30]} Rxa2 42. Rxc7 {[%emt 0:00:30]} Bb2 43. Rc2 {[%emt 0:00:30]} a4 44. bxa4 {[%emt 0:00:30]} Ra3+ 45. Kg4 {[%emt 0:00:30]} Bc3 46. e4 {[%emt 0:00:30]} Rxa4 47. f5 {[%emt 0:00:30]} exf5+ 48. Kxf5 {[%emt 0:00:30]} Ra5+ 49. Kg6 {[%emt 0:00:30]} Rb5 50. Rf2+ {[%emt 0:00:30]} Ke7 0-1

[Event "Moscow ch-T 2018"]
[Site "Moscow"]
[Date "2018.09.27"]
[Round "5"]
[White "Dvalishvili, Pavel S."]
[Black "Maltsevskaya, Aleksandra"]
[Result "0-1"]
[ECO "B11"]
[WhiteElo "2408"]
[BlackElo "2234"]
[Annotator "ChessBase"]
[PlyCount "105"]
[EventDate "2018.09.20"]
[EventType "team-tourn"]
[EventCountry "RUS"]
[SourceTitle "playchess.com"]
[Source "ChessBase"]
[SourceQuality "1"]
[TimeControl "5400+30"]

1. e4 {[%emt 0:00:00]} c6 {[%emt 0:00:00]} 2. Nc3 {[%emt 0:01:12]} d5 {[%emt 0:00:00]} 3. Nf3 {[%emt 0:00:08]} Bg4 {[%emt 0:00:00]} 4. h3 {[%emt 0:00:13]} Bxf3 {[%emt 0:00:04]} 5. Qxf3 {[%emt 0:00:01]} e6 {[%emt 0:00:13]} 6. a3 {[%emt 0:03:06]} Nf6 {[%emt 0:06:41]} 7. d3 {[%emt 0:01:07]} Nbd7 {[%emt 0:00:21]} 8. Qe2 {[%emt 0:00:45]} Qc7 {[%emt 0:03:58]} 9. g3 {[%emt 0:00:45]} Bc5 {[%emt 0:02:01]} 10. Bg2 {[%emt 0:00:42]} O-O {[%emt 0:01:18]} 11. Bf4 {[%emt 0:04:38]} Qb6 {[%emt 0:10:05]} 12. Nd1 {[%emt 0:01:38]} e5 {[%emt 0:07:12]} 13. Bd2 {[%emt 0:00:09]} Qa6 {[%emt 0:00:23]} 14. b4 {[%emt 0:05:26]} Be7 {[%emt 0:03:31]} 15. Ne3 {[%emt 0:00:20]} c5 {[%emt 0:11:33]} 16. Nf5 {[%emt 0:04:20]} Rfe8 {[%emt 0:04:32]} 17. exd5 {[%emt 0:00:32]} Bf8 {[%emt 0:00:32]} 18. O-O {[%emt 0:00:29]} e4 {[%emt 0:02:59]} 19. b5 {[%emt 0:08:07]} Qxb5 {[%emt 0:05:29]} 20. c4 {[%emt 0:00:01]} Qa6 {[%emt 0:00:18]} 21. dxe4 {[%emt 0:02:32]} Nxd5 {[%emt 0:03:38]} 22. Nh6+ {[%emt 0:05:08]} gxh6 {[%emt 0:00:31]} 23. Qg4+ {[%emt 0:00:00]} Bg7 {[%emt 0:09:21]} 24. cxd5 {[%emt 0:01:15]} Ne5 {[%emt 0:00:19]} 25. Qd1 {[%emt 0:02:47]} Nc4 {[%emt 0:01:12]} 26. Ra2 {[%emt 0:00:12]} b5 {[%emt 0:01:15]} 27. Bc1 {[%emt 0:01:12]} Rab8 {[%emt 0:11:16]} 28. Qc2 {[%emt 0:05:09]} Qg6 {[%emt 0:02:46]} 29. Kh2 {[%emt 0:01:35]} Nd6 {[%emt 0:03:27]} 30. Qxc5 {[%emt 0:02:45]} Nxe4 {[%emt 0:00:29]} 31. Qxa7 {[%emt 0:01:00]} Nc3 {[%emt 0:01:44]} 32. Rd2 {[%emt 0:00:16]} Qd6 {[%emt 0:04:19]} 33. Rd3 {[%emt 0:05:26]} Qg6 {[%emt 0:04:11]} 34. Re3 {[%emt 0:00:40]} Red8 {[%emt 0:00:31]} 35. Bd2 {[%emt 0:03:00]} Ra8 {[%emt 0:00:17]} 36. Qc5 {[%emt 0:00:56]} Rac8 {[%emt 0:00:31]} 37. Qe7 {[%emt 0:06:37]} Bf8 {[%emt 0:00:52]} 38. Qb7 {[%emt 0:00:22]} Rb8 {[%emt 0:00:32]} 39. Qa7 {[%emt 0:02:18]} Ra8 {[%emt 0:00:32]} 40. Qd4 {[%emt 0:00:09]} Bg7 {[%emt 0:00:08]} 41. Qd3 {[%emt 0:04:12]} Rxa3 {[%emt 0:00:44]} 42. Rfe1 {[%emt 0:01:33]} Qxd3 {[%emt 0:00:16]} 43. Rxd3 {[%emt 0:00:01]} b4 {[%emt 0:00:34]} 44. d6 {[%emt 0:00:25]} Nb1 {[%emt 0:00:53]} 45. Rxa3 {[%emt 0:02:22]} bxa3 {[%emt 0:00:06]} 46. Ba5 {[%emt 0:01:17]} Rxd6 {[%emt 0:00:52]} 47. Rxb1 {[%emt 0:00:17]} Bb2 {[%emt 0:00:14]} 48. Bb4 {[%emt 0:00:40]} a2 {[%emt 0:00:35]} 49. Rxb2 {[%emt 0:01:09]} a1=Q {[%emt 0:00:18]} 50. Bc3 {[%emt 0:04:40]} Rd8 {[%emt 0:00:35]} 51. Rd2 {[%emt 0:00:27]} Qxc3 {[%emt 0:00:30]} 52. Rxd8+ {[%emt 0:00:01]} Kg7 {[%emt 0:00:08]} 53. Rd5 {[%emt 0:00:52]} 0-1

[Event "Moscow ch-T 2018"]
[Site "Moscow"]
[Date "2018.09.27"]
[Round "5"]
[White "Gorbatov, Alexej"]
[Black "Obolentseva, Alexandra"]
[Result "1-0"]
[ECO "A05"]
[WhiteElo "2389"]
[BlackElo "2298"]
[Annotator "ChessBase"]
[PlyCount "79"]
[EventDate "2018.09.20"]
[EventType "team-tourn"]
[EventCountry "RUS"]
[SourceTitle "playchess.com"]
[Source "ChessBase"]
[SourceQuality "1"]
[TimeControl "5400+30"]

1. Nf3 Nf6 2. b3 d5 3. Bb2 g6 4. e3 Bg7 5. c4 O-O 6. cxd5 Qxd5 7. Bc4 Qf5 8. O-O c5 9. d4 Nc6 10. Qe2 cxd4 11. exd4 Nd5 12. Nbd2 Nf4 13. Qe3 Bh6 14. Kh1 b5 15. d5 bxc4 16. dxc6 c3 17. Qxc3 f6 18. Nc4 Qh5 19. Rfe1 Be6 20. Nd4 Bd5 21. f3 e5 22. Ne2 Nxe2 23. Rxe2 Bf4 24. h3 e4 25. fxe4 Qxe2 26. exd5 Rae8 27. Ba3 Rf7 28. d6 Qe6 29. d7 Rd8 30. Qf3 g5 31. Rd1 h5 32. Qd5 Qxd5 33. Rxd5 Bc7 34. Bd6 Rdxd7 35. cxd7 Rxd7 36. g4 hxg4 37. hxg4 Kf7 38. Rd2 Bxd6 39. Rxd6 Re7 40. Ra6 1-0

[Event "Moscow ch-T 2018"]
[Site "Moscow"]
[Date "2018.09.27"]
[Round "5"]
[White "Makarian Rudik, Botvinnik CS"]
[Black "Pogosyan, Stefan"]
[Result "0-1"]
[ECO "C24"]
[WhiteElo "2364"]
[BlackElo "2373"]
[Annotator "RC"]
[PlyCount "150"]
[EventDate "2018.09.20"]
[EventType "team-tourn"]
[EventCountry "RUS"]
[SourceTitle "playchess.com"]
[Source "ChessBase"]
[SourceQuality "1"]
[TimeControl "5400+30"]

1. e4 {[%emt 0:16:50]} e5 {[%emt 0:00:05]} 2. Bc4 {[%emt 0:00:06]} Nf6 {[%emt 0:00:25]} 3. d3 {[%emt 0:00:03]} c6 {[%emt 0:00:21]} 4. Nf3 {[%emt 0:00:16]} d5 {[%emt 0:00:48]} 5. Bb3 {[%emt 0:00:03]} Bb4+ {[%emt 0:00:08]} 6. Bd2 {[%emt 0:00:05]} Bd6 {[%emt 0:02:25]} 7. exd5 {[%emt 0:00:44]} Nxd5 {[%emt 0:00:39]} 8. O-O {[%emt 0:00:26]} O-O {[%emt 0:00:27]} 9. Nc3 {[%emt 0:04:36]} Nf4 {[%emt 0:06:26]} 10. Ne4 {[%emt 0:12:16]} Bg4 {[%emt 0:07:41]} 11. Bc3 {[%emt 0:05:20]} Ng6 {[%emt 0:15:01]} 12. h3 {[%emt 0:08:15]} Bf5 {[%emt 0:01:49]} 13. Ng3 {[%emt 0:00:59]} Qf6 {[%emt 0:02:10]} 14. d4 {[%emt 0:08:24]} Nd7 {[%emt 0:15:26]} 15. dxe5 {[%emt 0:09:37]} Ndxe5 {[%emt 0:00:47]} 16. Nd4 {[%emt 0:02:05]} Bxh3 {[%emt 0:08:42]} 17. gxh3 {[%emt 0:00:48]} Nf4 {[%emt 0:00:32]} 18. Ndf5 {[%emt 0:03:51]} Bc7 {[%emt 0:00:47]} 19. Kh1 {[%emt 0:13:13]} h5 {[%emt 0:08:36]} 20. Qd4 {[%emt 0:05:54]} Qg5 {[%emt 0:02:24]} 21. Bd2 {[%emt 0:00:03]} Nf3 {[%emt 0:00:45]} 22. Bxf4 {[%emt 0:00:26]} Bxf4 {[%emt 0:00:08]} 23. Qd3 {[%emt 0:01:30]} Ne5 {[%emt 0:04:45]} 24. Qe4 {[%emt 0:00:55]} Ng6 {[%emt 0:00:30]} 25. Nd4 {[%emt 0:01:37]} h4 {[%emt 0:02:32]} 26. Nf3 {[%emt 0:00:57]} Qh6 {[%emt 0:02:57]} 27. Nf5 {[%emt 0:00:14]} Qh5 {[%emt 0:00:02]} 28. Ne7+ {[%emt 0:00:08]} Kh7 {[%emt 0:00:16]} 29. Nxg6 {[%emt 0:00:44]} fxg6 {[%emt 0:00:08]} 30. Nd4 {[%emt 0:00:36]} Be5 {[%emt 0:01:49]} 31. Ne6 {[%emt 0:01:16]} Rf5 {[%emt 0:00:19]} 32. Qg4 {[%emt 0:00:27]} Qh6 {[%emt 0:00:22]} 33. f4 {[%emt 0:00:03]} Bxb2 {[%emt 0:00:27]} 34. Rad1 {[%emt 0:00:28]} Bf6 {[%emt 0:00:10]} 35. Rd7 {[%emt 0:00:21]} b5 {[%emt 0:00:10]} 36. Rg1 {[%emt 0:00:19]} Re8 {[%emt 0:01:05]} 37. c3 {[%emt 0:00:30]} Qh5 {[%emt 0:00:48]} 38. Qxh5+ {[%emt 0:01:09]} Rxh5 {[%emt 0:00:06]} 39. Re1 {[%emt 0:01:06]} Kh6 {[%emt 0:00:45]} 40. c4 {[%emt 0:00:46]} a5 {[%emt 0:01:11]} 41. a4 {[%emt 0:01:02]} bxc4 {[%emt 0:01:36]} 42. Bxc4 {[%emt 0:00:21]} Rc5 {[%emt 0:00:02]} 43. Bd3 {[%emt 0:00:58]} Rc3 {[%emt 0:00:03]} 44. f5 {[%emt 0:00:44]} c5 {[%emt 0:02:43]} 45. Rg1 {[%emt 0:00:38]} g5 {[%emt 0:01:01]} 46. Kg2 {[%emt 0:00:38]} c4 {[%emt 0:00:24]} 47. Be4 {[%emt 0:00:41]} Rb8 {[%emt 0:00:27]} 48. Rb7 {[%emt 0:00:16]} Rxb7 {[%emt 0:00:32]} 49. Bxb7 {[%emt 0:00:04]} Rg3+ {[%emt 0:00:05]} 50. Kh2 {[%emt 0:00:44]} Ra3 {[%emt 0:00:04]} 51. Rc1 {[%emt 0:00:42]} Rxa4 {[%emt 0:00:36]} 52. Bd5 {[%emt 0:00:34]} c3 {[%emt 0:00:16]} 53. Nc5 {[%emt 0:00:53]} Rd4 {[%emt 0:01:34]} 54. Bb3 {[%emt 0:00:14]} Rd2+ {[%emt 0:00:11]} 55. Kh1 {[%emt 0:00:05]} Re2 {[%emt 0:02:26]} 56. Rd1 {[%emt 0:01:18]} Re3 {[%emt 0:00:12]} 57. Rd3 {[%emt 0:00:18]} Re1+ {[%emt 0:00:03]} 58. Kg2 c2 59. Bxc2 Re2+ 60. Kf3 Rxc2 61. Ne4 Rc6 62. Ra3 Ra6 63. Ra4 Be7 64. Kg4 g6 65. Rc4 a4 66. Rc7 gxf5+ 67. Kxf5 a3 68. Rxe7 Ra5+ 69. Kf6 a2 70. Re6 Kh5 71. Kf7 Ra7+ 72. Kg8 a1=Q 73. Nf6+ Kg6 74. Nh5+ Kxh5 75. Rh6+ {[%emt 0:07:33]} Kxh6 0-1

[Event "Moscow ch-T 2018"]
[Site "Moscow"]
[Date "2018.09.27"]
[Round "5"]
[White "Pavlov, Danila"]
[Black "Krylov, Mikhail"]
[Result "1/2-1/2"]
[ECO "C68"]
[WhiteElo "2312"]
[BlackElo "2476"]
[Annotator "RC"]
[PlyCount "55"]
[EventDate "2018.09.20"]
[EventType "team-tourn"]
[EventCountry "RUS"]
[TimeControl "5400+30"]

1. e4 {[%emt 0:00:00]} e5 {[%emt 0:00:31]} 2. Nf3 {[%emt 0:00:29]} Nc6 {[%emt 0:00:08]} 3. Bb5 {[%emt 0:00:05]} a6 {[%emt 0:00:28]} 4. Bxc6 {[%emt 0:00:04]} dxc6 {[%emt 0:00:19]} 5. O-O {[%emt 0:00:04]} Bg4 {[%emt 0:00:50]} 6. h3 {[%emt 0:00:05]} h5 {[%emt 0:00:24]} 7. d3 {[%emt 0:00:07]} Qf6 {[%emt 0:00:59]} 8. Be3 {[%emt 0:00:05]} Bxf3 {[%emt 0:06:22]} 9. Qxf3 {[%emt 0:00:30]} Qxf3 10. gxf3 {[%emt 0:00:00]} Bd6 {[%emt 0:14:50]} 11. Nd2 {[%emt 0:00:00]} f5 {[%emt 0:01:14]} 12. Nc4 {[%emt 0:11:45]} f4 {[%emt 0:03:17]} 13. Bd2 {[%emt 0:01:03]} Ne7 {[%emt 0:16:45]} 14. Rfd1 {[%emt 0:01:30]} g5 {[%emt 0:06:20]} 15. Bc3 {[%emt 0:11:26]} Ng6 {[%emt 0:00:24]} 16. d4 {[%emt 0:00:14]} exd4 {[%emt 0:03:38]} 17. Bxd4 {[%emt 0:00:10]} Rg8 {[%emt 0:00:40]} 18. Kf1 {[%emt 0:08:28]} Kf7 {[%emt 0:03:23]} 19. Rd3 {[%emt 0:09:40]} Ke6 {[%emt 0:03:10]} 20. Rad1 {[%emt 0:02:05]} Be7 {[%emt 0:04:52]} 21. Na5 {[%emt 0:09:12]} c5 {[%emt 0:02:02]} 22. Bc3 {[%emt 0:00:08]} b5 {[%emt 0:00:24]} 23. b3 {[%emt 0:00:50]} Rab8 {[%emt 0:10:52]} 24. Rd7 {[%emt 0:11:41]} Rbd8 {[%emt 0:09:07]} 25. Rxd8 {[%emt 0:00:46]} Rxd8 {[%emt 0:01:15]} 26. Rxd8 {[%emt 0:00:09]} Bxd8 {[%emt 0:00:02]} 27. Nc6 {[%emt 0:01:13]} Be7 {[%emt 0:01:21]} 28. Ke2 {[%emt 0:13:13] Ke5 [%clk 0:08:54]} 1/2-1/2